bitfinex/quotes_ETHUSD_20250620
["timestamp","ask_amount","ask_price","bid_price","bid_amount"]
[1750436887564,10.0,2490.0,2489.9,4.89662555]
[1750436887759,17.084,2490.0,2489.9,4.89662555]
[1750436887988,10.0,2490.0,2489.9,5.78792303]
[1750436888189,17.084,2490.0,2489.9,5.78792303]
[1750436888377,10.0,2490.0,2489.9,5.78792303]
[1750436888578,0.0625,2490.3,2490.2,4.015691]
[1750436888905,7.9459,2490.3,2490.2,4.015691]
[1750436889101,8.16931436,2490.3,2490.2,4.015691]
[1750436889398,8.10581436,2490.3,2490.2,4.015691]
[1750436890198,8.16831436,2490.3,2490.2,4.015691]
[1750436890986,10.0,2490.2,2489.6,0.815]
[1750436891191,7.12133299,2490.1,2489.9,4.01610065]
[1750436891394,7.18383299,2490.1,2490.0,4.01606425]
[1750436893093,7.4071869,2490.1,2490.0,4.01606425]
[1750436893674,7.11833299,2490.1,2490.0,4.01606425]
[1750436894302,7.40426868,2490.1,2490.0,4.01606425]
[1750436894781,7.18083299,2490.1,2490.0,4.01606425]
[1750436894980,7.4041916,2490.1,2490.0,4.01606425]
[1750436895181,7.40419182,2490.1,2490.0,4.01606425]
[1750436895480,0.8382,2490.0,2489.1,4.07495715]
[1750436895680,0.0625,2489.7,2489.6,4.01655452]
[1750436895970,17.17883299,2489.7,2489.6,4.01655452]
[1750436896190,17.076,2489.7,2489.6,4.01655452]
[1750436896407,10.0,2489.7,2489.6,4.07405452]
[1750436896621,10.0,2489.7,2489.6,5.63774333]
[1750436896988,17.075,2489.7,2489.6,5.63774333]
[1750436897372,7.84,2490.2,2490.1,4.01590297]
[1750436897578,17.075,2490.2,2490.1,4.01590297]
[1750436898793,17.29823908,2490.2,2490.1,4.01590297]
[1750436899285,10.0625,2490.1,2490.0,4.01593355]
[1750436900114,0.0625,2490.0,2489.9,4.01606971]
[1750436900313,7.39900398,2490.0,2489.9,4.01606971]
[1750436900482,7.39900398,2490.0,2489.8,4.01635839]
[1750436900483,10.0625,2489.9,2489.8,4.01629594]
[1750436900814,10.28567071,2489.9,2489.8,4.01629594]
[1750436901039,10.22319497,2489.9,2489.8,4.01629594]
[1750436902311,11.22935673,2489.9,2489.8,4.01629594]
[1750436902495,11.29185673,2489.9,2489.8,4.01629594]
[1750436903027,11.29185673,2489.9,2489.1,4.01749836]
[1750436903028,0.8177,2489.8,2489.6,4.01670262]
[1750436903224,10.0,2489.6,2489.5,4.01675816]
[1750436903427,11.80739391,2489.6,2489.4,4.01694416]
[1750436903720,0.0625,2489.3,2489.0,4.01766895]
[1750436903922,10.0,2489.1,2488.6,4.79772129]
[1750436904218,17.8273,2489.0,2488.6,4.01831296]
[1750436904385,17.8273,2489.0,2488.6,4.01827469]
[1750436904386,0.0625,2488.8,2488.6,4.01827469]
[1750436904582,7.068,2488.7,2488.6,4.01827469]
[1750436904935,7.29107127,2488.7,2488.6,4.01827469]
[1750436906022,7.068,2488.7,2488.6,4.01827469]
[1750436907926,10.0,2488.6,2488.5,4.01839751]
[1750436908722,10.0625,2488.6,2488.5,4.01839751]
[1750436908910,10.0625,2488.6,2488.5,4.01848503]
[1750436909228,10.0,2488.6,2488.5,4.01848503]
[1750436913226,11.87316176,2488.6,2488.3,4.01866363]
[1750436913527,10.0,2488.4,2488.2,4.01887218]
[1750436913730,10.0,2488.2,2487.9,0.7612]
[1750436913919,7.062,2488.1,2488.0,4.01915914]
[1750436916431,7.062,2488.1,2487.9,4.01936656]
[1750436916630,0.04033299,2488.0,2487.9,4.01936656]
[1750436917209,0.10283299,2488.0,2487.9,4.01945415]
[1750436917535,0.04033299,2488.0,2487.9,4.01945415]
[1750436918206,0.10163299,2488.0,2487.9,4.01945415]
[1750436918406,0.10163299,2488.0,2487.8,4.01948135]
[1750436918407,0.83217629,2488.0,2487.8,4.01948135]
[1750436918604,7.1193,2487.9,2487.8,4.01948135]
[1750436919014,7.058,2487.9,2487.8,4.01948135]
[1750436919336,0.04033299,2488.0,2487.9,4.01945415]
[1750436919539,7.057,2488.0,2487.9,4.01945415]
[1750436919700,7.09733299,2488.0,2487.9,4.01945415]
[1750436919905,7.15863299,2488.0,2487.9,4.01945415]
[1750436920140,7.15863299,2488.0,2487.8,4.0195794]
[1750436920439,8.14107629,2488.0,2487.4,4.86515044]
[1750436920639,8.0394433,2488.0,2487.8,4.01953664]
[1750436920818,0.0613,2487.9,2487.8,4.01961572]
[1750436921079,0.0613,2487.9,2487.7,4.01967804]
[1750436921266,7.09633299,2487.8,2487.7,4.01967804]
[1750436922649,7.09633299,2487.8,2487.4,0.7875]
[1750436922819,7.96243299,2487.8,2487.7,4.0197773]
[1750436923020,18.49316453,2487.8,2487.7,4.0197773]
[1750436923342,18.39153154,2487.8,2487.7,4.0197773]
[1750436924334,18.45283154,2487.8,2487.6,4.01987408]
[1750436924534,0.04033299,2487.7,2487.6,4.01987408]
[1750436926527,10.10163299,2487.7,2487.6,4.01993889]
[1750436926861,11.00616176,2487.7,2487.6,4.01993889]
[1750436928513,11.06746176,2487.7,2487.6,4.01993889]
[1750436928945,11.06746176,2487.7,2487.2,0.7729]
[1750436929147,9.70578093,2487.5,2487.4,4.0202163]
[1750436929354,19.70578093,2487.5,2487.4,4.0202163]
[1750436929964,20.74952423,2487.5,2487.3,4.0203777]
[1750436930133,26.79511392,2487.4,2487.3,4.02042375]
[1750436930445,26.79511392,2487.4,2487.2,4.02051397]
[1750436930446,26.75478093,2487.4,2487.2,4.02049654]
[1750436930611,10.04033299,2487.3,2487.2,4.02049654]
[1750436930810,10.0,2487.3,2487.2,4.02049654]
[1750436931237,10.0,2487.3,2487.1,4.0207415]
[1750436931446,7.08733299,2487.2,2487.1,4.0207415]
[1750436933319,7.08733299,2487.2,2486.8,0.7743]
[1750436933320,27.67936453,2487.2,2486.9,4.02099954]
[1750436933523,9.70578093,2487.0,2486.9,4.02099954]
[1750436933732,17.56758093,2487.0,2486.8,4.02118118]
[1750436933936,10.04033299,2486.9,2486.7,4.02135828]
[1750436934184,20.01991392,2486.8,2486.0,0.761]
[1750436934473,10.0,2486.6,2486.5,4.02171727]
[1750436934632,7.044,2486.6,2486.4,4.07947902]
[1750436934830,7.08433299,2486.6,2486.4,4.07947902]
[1750436935143,17.84,2486.9,2486.8,4.0212321]
[1750436935462,24.86497075,2486.9,2486.8,4.0212321]
[1750436935662,26.85357581,2486.9,2486.7,4.02132234]
[1750436935828,9.74611392,2486.8,2486.6,4.02148951]
[1750436936031,17.044,2486.7,2486.6,4.02148951]
[1750436936268,10.0,2486.6,2486.3,4.02190418]
[1750436936482,10.0,2486.6,2486.2,4.02212667]
[1750436936483,10.0,2486.4,2486.2,4.02212667]
[1750436936769,17.08333299,2486.3,2486.2,4.02212667]
[1750436936936,17.043,2486.3,2486.2,4.02212667]
[1750436938340,17.043,2486.3,2486.2,4.07972667]
[1750436938559,17.043,2486.3,2486.2,4.86162667]
[1750436940379,17.043,2486.3,2485.7,4.02294951]
[1750436940584,9.70578093,2486.1,2486.0,4.02252614]
[1750436940893,26.74578093,2486.1,2486.0,4.02252614]
[1750436941037,17.04,2486.1,2486.0,4.02252614]
[1750436941592,17.04,2486.1,2485.6,0.7532]
[1750436941593,10.0,2486.0,2485.6,0.7532]
[1750436941766,10.0,2485.7,2485.3,0.7532]
[1750436942076,9.70578093,2485.5,2485.4,4.02341582]
[1750436942510,10.11399512,2485.5,2485.4,4.02341582]
[1750436942838,0.40821419,2485.5,2485.4,4.02341582]
[1750436943166,4.02258774,2486.0,2485.4,4.02341582]
[1750436943167,18.64947075,2486.1,2486.0,4.02252614]
[1750436943374,10.0,2486.0,2485.9,4.02268796]
[1750436944755,0.40841544,2486.2,2486.1,4.02236434]
[1750436944977,0.40841544,2486.2,2486.1,4.07996434]
[1750436945474,7.037,2486.3,2486.2,4.02220255]
[1750436945678,17.037,2486.3,2486.2,4.07980255]
[1750436946579,7.037,2486.3,2486.2,5.37163185]
[1750436949178,10.39986472,2486.6,2486.5,4.02171727]
[1750436949368,17.43386472,2486.6,2486.5,4.02171727]
[1750436950505,17.49316472,2486.6,2486.5,4.02171727]
[1750436950704,17.43386472,2486.6,2486.5,4.02171727]
[1750436952386,0.7875,2486.5,2486.3,4.02191221]
[1750436952568,7.12863299,2486.4,2486.3,4.02191221]
[1750436952766,7.06933299,2486.4,2486.3,4.02191221]
[1750436953480,7.06933299,2486.4,2485.8,0.0612]
[1750436953481,10.0593,2486.3,2485.8,0.8237]
[1750436953684,10.0593,2486.3,2485.6,0.8497]
[1750436953685,10.0,2486.0,2485.6,0.8497]
[1750436953897,7.06833299,2485.9,2485.8,4.02284978]
[1750436954604,7.028,2485.9,2485.8,4.08404978]
[1750436954783,7.028,2485.9,2485.8,4.97360592]
[1750436955398,0.7875,2486.5,2486.4,4.02187902]
[1750436955719,7.06633299,2486.5,2486.4,4.02187902]
[1750436955890,7.06633299,2486.5,2486.4,4.08307902]
[1750436956296,7.82197075,2486.7,2486.6,4.02155553]
[1750436956504,17.026,2486.7,2486.6,4.02155553]
[1750436956919,7.026,2486.7,2486.6,4.02155553]
[1750436957287,7.30711739,2486.7,2486.1,0.7993]
[1750436957482,0.04033299,2486.6,2486.5,4.02171727]
[1750436957697,7.026,2486.7,2486.6,4.02155553]
[1750436957894,0.22181727,2486.7,2486.6,4.02155553]
[1750436958112,7.24581727,2486.7,2486.6,4.02155553]
[1750436958299,7.65480734,2486.7,2486.6,4.02155553]
[1750436958496,7.4329921,2486.7,2486.6,4.02155553]
[1750436958700,7.65478616,2486.7,2486.6,4.02155553]
[1750436959118,7.65477918,2486.7,2486.6,4.02155553]
[1750436959283,7.4329921,2486.7,2486.6,4.02155553]
[1750436960110,7.4329921,2486.7,2486.5,4.02160642]
[1750436960312,0.09963299,2486.6,2486.5,4.02171727]
[1750436961084,0.0593,2486.5,2486.3,4.0220259]
[1750436961290,0.04033299,2486.6,2486.5,4.02171727]
[1750436961519,7.28353172,2486.6,2486.5,4.02171727]
[1750436961722,17.28353257,2486.6,2486.5,4.02171727]
[1750436961926,17.24321016,2486.6,2486.5,4.02171727]
[1750436962918,10.0,2486.5,2486.4,4.02187902]
[1750436963304,10.0,2486.5,2486.4,4.08307902]
[1750436964124,7.021,2486.6,2486.5,4.02171727]
[1750436964342,7.06133299,2486.6,2486.5,4.02171727]
[1750436964649,7.021,2486.6,2486.5,4.02171727]
[1750436965326,7.06133299,2486.6,2486.5,4.02171727]
[1750436965727,7.021,2486.6,2486.5,4.02171727]
[1750436965926,7.06133299,2486.6,2486.5,4.02171727]
[1750436966395,7.021,2486.6,2486.5,4.02171727]
[1750436966577,7.06133299,2486.6,2486.5,4.02171727]
[1750436969142,7.021,2486.6,2486.5,4.02171727]
[1750436969967,7.021,2486.6,2486.5,4.08291727]
[1750436970187,7.021,2486.6,2486.5,4.02171727]
[1750436972656,7.021,2486.6,2486.5,4.08291727]
[1750436972857,7.021,2486.6,2486.5,4.02171727]
[1750436973074,17.021,2486.6,2486.5,4.89961727]
[1750436973277,17.021,2486.6,2486.5,5.7917669]
[1750436973278,10.0,2486.6,2486.5,5.7917669]
[1750436973457,8.60337075,2487.3,2487.2,4.02058539]
[1750436973652,26.22647074,2487.3,2487.2,4.02058539]
[1750436974490,10.0593,2487.2,2487.1,4.02074705]
[1750436974670,10.28142492,2487.2,2487.1,4.02074705]
[1750436974873,10.22212492,2487.2,2487.1,4.02074705]
[1750436975063,10.22212409,2487.2,2487.1,4.02074705]
[1750436975565,0.22184544,2487.2,2487.1,4.02074705]
[1750436975769,17.26817843,2487.2,2487.1,4.02074705]
[1750436975970,17.22784544,2487.2,2487.1,4.02074705]
[1750436976786,10.0,2487.2,2487.1,4.02074705]
[1750436976973,17.004,2487.2,2487.1,4.08194705]
[1750436978184,17.003,2487.2,2487.1,4.08194705]
[1750436978404,17.003,2487.2,2487.1,4.97222978]
[1750436978704,10.0,2487.2,2487.1,4.97222978]
[1750436979105,10.0,2487.2,2487.1,5.76952978]
[1750436979678,10.0,2487.2,2487.1,4.97342978]
[1750436979873,7.001,2487.3,2487.2,4.02058539]
[1750436980191,7.001,2487.3,2487.2,5.46420493]
[1750436980737,11.884,2487.7,2487.6,4.01993889]
[1750436980931,18.883,2487.7,2487.6,4.01993889]
[1750436981624,11.884,2487.7,2487.6,4.01993889]
[1750436981787,8.883,2487.7,2487.6,4.01993889]
[1750436982328,0.822,2488.2,2488.1,4.01913106]
[1750436982485,1.884,2488.3,2488.2,4.01896953]
[1750436982685,6.997,2488.3,2488.2,4.01896953]
[1750436982887,6.997,2488.3,2488.1,4.01903591]
[1750436983087,0.8006,2488.1,2487.8,4.01950373]
[1750436983401,17.09703299,2488.0,2487.9,4.01945415]
[1750436983622,16.997,2488.0,2487.9,4.01945415]
[1750436985196,16.997,2488.0,2487.8,4.01953293]
[1750436985401,0.04033299,2487.9,2487.8,4.01959969]
[1750436986053,16.997,2488.0,2487.9,4.01945415]
[1750436987447,16.997,2488.0,2487.5,0.7758]
[1750436987740,0.87133299,2487.9,2487.7,4.01967749]
[1750436987948,16.991,2487.8,2487.7,4.01967749]
[1750436991247,16.991,2487.8,2487.7,4.08207749]
[1750436991547,16.991,2487.8,2487.7,4.01967749]
[1750436992900,16.991,2487.8,2487.4,0.0624]
[1750436993104,10.04033299,2487.7,2487.6,4.01993889]
[1750436993303,10.0,2487.7,2487.6,4.01993889]
[1750436993918,6.991,2487.8,2487.7,4.0197773]
[1750436997552,1.21669486,2488.4,2488.1,4.01913106]
[1750436997736,1.21669486,2488.4,2487.3,4.02038022]
[1750436997737,10.0597,2488.2,2487.6,0.8464]
[1750436997940,7.02233299,2488.1,2488.0,4.01928931]
[1750436998253,10.0,2488.0,2487.9,4.01936516]
[1750436999222,10.0,2488.0,2487.5,4.02009506]
[1750436999223,12.56487,2488.0,2487.5,4.02003678]
[1750436999550,10.0,2487.8,2487.7,4.0197773]
[1750436999953,10.0,2487.8,2487.5,4.02003364]
[1750437000265,10.0,2487.8,2487.2,0.8438]
[1750437000266,10.0,2487.6,2487.2,0.8438]
[1750437000474,10.0,2487.4,2486.9,0.7814]
[1750437000770,21.0807867,2487.5,2486.2,4.02217342]
[1750437000771,10.0597,2487.1,2486.7,0.7846]
[1750437000938,10.0,2487.2,2487.1,4.02074705]
[1750437001132,16.979,2487.2,2487.0,4.02083138]
[1750437001327,17.0387,2487.2,2486.7,0.7846]
[1750437001529,16.979,2487.2,2486.8,0.0624]
[1750437001832,16.979,2487.2,2487.1,4.02074705]
[1750437002629,17.0387,2487.2,2487.0,4.02082241]
[1750437002858,17.0387,2487.2,2487.1,4.02074705]
[1750437003055,0.0597,2487.5,2487.0,4.02082241]
[1750437003363,10.0,2487.5,2487.1,1.19362224]
[1750437003666,10.0,2487.8,2487.5,4.02005186]
[1750437003854,7.0367,2487.7,2487.5,4.02005186]
[1750437004060,6.977,2487.7,2487.6,4.01993889]
[1750437004959,7.01733299,2487.7,2487.6,4.01993889]
[1750437006268,6.977,2487.7,2487.6,4.08233889]
[1750437006473,6.977,2487.7,2487.6,4.96820232]
[1750437007179,6.977,2487.7,2487.6,4.90580232]
[1750437007366,7.82197075,2488.3,2488.0,0.836]
[1750437007573,30.8275,2488.6,2488.5,4.01848503]
[1750437007770,0.0597,2488.4,2487.8,0.7736]
[1750437007975,6.973,2488.3,2488.2,4.01896953]
[1750437008524,6.973,2488.3,2487.9,0.0624]
[1750437008802,0.04033299,2488.2,2488.1,4.01913106]
[1750437009603,0.04033299,2488.2,2488.0,4.01921339]
[1750437009807,0.04033299,2488.2,2488.1,4.01913106]
[1750437009983,9.74493299,2488.2,2487.6,0.823]
[1750437010187,0.0591,2488.1,2487.9,4.01938704]
[1750437010389,7.01133299,2488.0,2487.9,4.01938704]
[1750437010714,7.01133299,2488.0,2487.8,4.01950522]
[1750437010878,7.07043299,2488.0,2487.8,4.01950522]
[1750437011074,7.01133299,2488.0,2487.9,4.01945415]
[1750437011709,6.971,2488.0,2487.9,4.01945415]
[1750437012011,0.04033299,2488.1,2488.0,4.0192926]
[1750437012211,7.00933299,2488.1,2488.0,4.0192926]
[1750437013312,17.00933299,2488.1,2487.9,4.01936373]
[1750437013611,10.0,2488.0,2487.9,4.01945415]
[1750437014012,10.0,2488.0,2487.8,4.01952472]
[1750437014171,7.00733299,2487.9,2487.8,4.01952472]
[1750437014372,17.00733299,2487.9,2487.8,4.01952472]
[1750437014612,16.967,2487.9,2487.8,4.01952472]
[1750437015341,16.967,2487.9,2487.8,4.07582472]
[1750437015553,10.0,2488.4,2488.2,4.01882741]
[1750437015706,6.966,2488.4,2488.3,4.79167096]
[1750437015914,7.82197075,2488.8,2488.6,4.01823126]
[1750437016256,7.82197075,2488.8,2488.5,4.01844178]
[1750437016257,7.18698869,2488.7,2488.5,4.01844178]
[1750437016543,16.965,2488.7,2488.6,4.01832355]
[1750437016706,10.0,2488.6,2488.4,4.01856316]
[1750437016906,16.965,2488.5,2488.4,4.01856316]
[1750437017110,12.412,2488.5,2488.4,4.01856316]
[1750437017420,0.3940425,2488.6,2488.5,4.86758503]
[1750437017608,17.82197075,2488.8,2488.7,4.01816209]
[1750437017809,17.18601783,2488.8,2488.7,4.01816209]
[1750437018220,7.18601783,2488.8,2488.6,4.01823128]
[1750437018443,0.04033299,2488.7,2488.5,4.0184119]
[1750437018651,16.964,2488.6,2488.5,4.0184119]
[1750437019942,16.964,2488.6,2488.5,4.01848503]
[1750437020143,16.964,2488.6,2488.4,4.0185761]
[1750437020346,0.04033299,2488.5,2488.4,4.0185761]
[1750437021348,0.04033299,2488.5,2488.1,0.0563]
[1750437021577,16.96,2488.4,2488.3,4.01869206]
[1750437022157,10.0,2488.3,2488.2,4.0188805]
[1750437022361,6.96,2488.4,2488.2,4.0188805]
[1750437022653,0.04033299,2488.3,2488.2,4.0188805]
[1750437022881,6.96,2488.4,2488.3,4.01880802]
[1750437025748,6.96,2488.4,2488.3,4.07510802]
[1750437026065,6.96,2488.4,2488.3,4.01880802]
[1750437026652,0.40537768,2488.7,2488.5,4.01844762]
[1750437026959,0.04033299,2488.7,2488.6,4.01832355]
[1750437027166,6.99533299,2488.7,2488.6,4.01832355]
[1750437027896,6.99533299,2488.7,2488.5,4.01839367]
[1750437028603,7.05443299,2488.7,2488.5,4.01839367]
[1750437028800,7.05443299,2488.7,2488.6,4.01832355]
[1750437029601,6.99533299,2488.7,2488.6,4.01832355]
[1750437031602,11.87,2489.0,2488.9,4.0178392]
[1750437031914,49.41241655,2489.0,2488.9,4.0178392]
[1750437032109,40.0,2488.9,2488.8,4.01792193]
[1750437032319,10.0,2488.8,2488.5,0.8647]
[1750437032486,6.99033299,2488.7,2488.6,4.01826037]
[1750437033630,11.87,2489.0,2488.9,4.0178392]
[1750437033829,8.819,2489.0,2488.9,4.0741392]
[1750437034331,1.87,2489.0,2488.9,4.0741392]
[1750437034513,8.819,2489.0,2488.9,4.0741392]
[1750437034714,8.819,2489.0,2488.9,4.0178392]
[1750437034918,0.0591,2489.2,2488.9,4.0178392]
[1750437035122,6.948,2489.0,2488.9,4.0178392]
[1750437035419,0.09943299,2489.2,2488.9,4.0178392]
[1750437035618,6.947,2489.1,2488.9,4.0178392]
[1750437035846,0.04033299,2489.0,2488.9,4.0178392]
[1750437035998,2.16413418,2489.0,2488.7,4.01809916]
[1750437036199,7.54028542,2488.9,2488.7,4.01809916]
[1750437036498,0.04033299,2488.8,2488.7,4.01809916]
[1750437037296,0.04033299,2488.8,2488.6,4.01823686]
[1750437037503,6.946,2488.7,2488.6,4.01832355]
[1750437037731,6.946,2488.7,2488.4,4.01851653]
[1750437037960,6.946,2488.7,2488.6,4.01832355]
[1750437038944,6.946,2488.7,2488.2,0.8141]
[1750437039149,6.946,2488.7,2488.3,0.0586]
[1750437039443,6.946,2488.7,2488.6,4.01832355]
[1750437041851,6.946,2488.7,2488.3,0.48918122]
[1750437042048,0.04033299,2488.6,2488.5,4.01835181]
[1750437042270,6.946,2488.7,2488.6,4.01832355]
[1750437044993,16.946,2488.7,2488.6,4.01832355]
[1750437045199,13.1702,2488.6,2488.0,0.7509]
[1750437045348,13.1702,2488.6,2487.8,0.7509]
[1750437045349,9.69723517,2488.2,2487.8,0.7509]
[1750437045555,10.0,2487.9,2487.8,4.01961572]
[1750437046589,9.99708916,2487.9,2487.8,4.01961572]
[1750437046951,0.8185,2488.4,2488.2,4.01895201]
[1750437047156,7.34983869,2488.3,2488.0,4.01921981]
[1750437047452,6.937,2488.2,2488.1,4.07773106]
[1750437048289,7.82197075,2488.8,2488.7,4.01816209]
[1750437048601,17.30759958,2488.8,2488.7,4.01816209]
[1750437048966,17.53055979,2488.8,2488.6,4.018303]
[1750437049189,0.63489278,2488.7,2488.2,0.8153]
[1750437049403,10.04033299,2488.7,2488.6,4.01832355]
[1750437049594,10.59456227,2488.7,2488.6,4.83832355]
[1750437049895,0.22296225,2488.7,2488.6,4.89692355]
[1750437050055,7.82197075,2489.2,2489.1,4.01751637]
[1750437050253,8.41659813,2489.2,2489.1,4.01751637]
[1750437050459,8.41659813,2489.2,2489.1,5.70423462]
[1750437050460,14.75597075,2489.2,2489.1,5.70423462]
[1750437050658,24.75597075,2489.2,2489.1,5.70423462]
[1750437051090,14.75597075,2489.2,2489.1,5.70423462]
[1750437051294,24.75597075,2489.2,2489.1,5.70423462]
[1750437051798,24.75497075,2489.2,2489.1,5.70423462]
[1750437051960,17.82197075,2489.2,2489.1,5.70423462]
[1750437052160,24.75397075,2489.2,2489.1,5.70423462]
[1750437052356,10.0,2489.2,2489.1,5.70423462]
[1750437052561,16.932,2489.2,2489.1,5.70423462]
[1750437052895,10.0,2489.2,2489.1,5.70423462]
[1750437053092,16.931,2489.2,2489.1,5.70423462]
[1750437056002,16.931,2489.2,2489.1,4.82103462]
[1750437056176,16.931,2489.2,2489.1,4.01751637]
[1750437057104,10.0,2489.1,2489.0,4.01762668]
[1750437057407,6.931,2489.2,2489.1,4.01751637]
[1750437059410,16.931,2489.2,2489.1,4.01751637]
[1750437060986,16.931,2489.2,2489.1,4.07611637]
[1750437061790,16.931,2489.2,2489.1,4.88549068]
[1750437062397,16.931,2489.2,2489.1,4.01751637]
[1750437063513,16.931,2489.2,2489.1,4.07611637]
[1750437063846,10.0,2489.1,2489.0,4.01760842]
[1750437064140,0.0602,2489.0,2488.6,4.0183042]
[1750437064346,16.921,2488.9,2488.3,0.0586]
[1750437064642,0.10053299,2488.8,2488.6,4.01825788]
[1750437064793,6.92,2488.7,2488.6,4.01825788]
[1750437064994,6.92,2488.7,2488.2,0.8465]
[1750437064995,10.0,2488.6,2488.5,4.01839363]
[1750437065626,10.8181,2488.6,2488.2,4.01886565]
[1750437065804,10.8181,2488.6,2488.0,4.01921729]
[1750437065805,0.0602,2488.3,2488.0,4.01921729]
[1750437066006,10.0,2488.1,2488.0,4.01921729]
[1750437066210,10.0,2488.1,2488.0,4.82308224]
[1750437066395,10.0,2488.1,2488.0,4.88168224]
[1750437067192,10.8133,2488.9,2488.2,0.7653]
[1750437067424,10.0,2488.7,2488.6,4.01832355]
[1750437067628,7.82197075,2489.4,2488.6,4.01832355]
[1750437067629,7.82197075,2489.4,2488.8,0.0586]
[1750437067830,6.95833299,2489.3,2489.1,4.01737922]
[1750437067992,10.0,2489.2,2489.1,4.01737922]
[1750437068189,1.27106371,2489.7,2489.0,4.01763576]
[1750437068391,10.0,2489.5,2489.3,4.01715142]
[1750437068622,16.918,2489.4,2489.3,4.01715142]
[1750437068832,1.26756371,2489.7,2489.3,4.01715142]
[1750437069027,7.55061549,2489.6,2489.5,4.01686049]
[1750437069234,6.95833299,2489.6,2489.5,4.01686049]
[1750437069422,10.0,2489.5,2489.4,4.01694107]
[1750437070001,6.918,2489.6,2489.5,4.01687085]
[1750437070196,16.95833299,2489.6,2489.5,4.01687085]
[1750437070520,16.95833299,2489.6,2489.5,4.77517085]
[1750437070521,10.0,2489.6,2489.5,4.77517085]
[1750437070723,0.39756371,2489.7,2489.6,4.01670951]
[1750437071043,0.0567,2490.0,2489.2,4.77555276]
[1750437071044,40.0,2490.0,2489.8,4.01633245]
[1750437071218,6.95633299,2489.9,2489.8,4.01633245]
[1750437071420,16.95633299,2489.9,2489.8,4.01633245]
[1750437071633,16.916,2489.9,2489.8,4.01633245]
[1750437071958,10.0,2489.9,2489.8,4.01633245]
[1750437072320,16.915,2489.9,2489.8,4.01633245]
[1750437073028,10.0,2489.8,2489.5,4.01676096]
[1750437073229,10.0,2489.6,2489.5,4.01676096]
[1750437073433,16.914,2489.6,2489.5,4.82024887]
[1750437075344,6.9707,2489.6,2489.3,4.01707747]
[1750437075561,10.0,2489.5,2489.4,4.01694367]
[1750437078289,0.0567,2489.7,2489.5,4.01676833]
[1750437078494,10.0,2489.6,2489.5,4.01676833]
[1750437078652,10.0567,2489.6,2489.5,4.01676833]
[1750437079663,10.0,2489.6,2489.5,4.01676833]
[1750437080441,10.0,2489.6,2489.4,4.01693998]
[1750437080642,7.00703299,2489.5,2489.4,4.01693998]
[1750437080841,16.95033299,2489.5,2489.4,4.01693998]
[1750437081042,16.91,2489.5,2489.4,4.01693998]
[1750437081876,19.324,2489.5,2489.4,4.01693998]
[1750437082062,6.91,2489.5,2489.4,4.01693998]
[1750437082393,6.907,2489.5,2489.4,4.01703221]
[1750437085393,1.88533299,2489.8,2489.7,4.01654817]
[1750437085594,8.79033299,2489.8,2489.7,4.01654817]
[1750437085764,8.75,2489.8,2489.7,4.01654817]
[1750437086165,12.22372918,2490.1,2490.0,4.01606425]
[1750437086596,19.12772918,2490.1,2490.0,4.01606425]
[1750437087312,19.53795631,2490.1,2490.0,4.01606425]
[1750437087467,17.31422713,2490.1,2490.0,4.01606425]
[1750437088587,16.903,2490.1,2490.0,4.01606425]
[1750437089469,16.903,2490.1,2489.9,4.0161677]
[1750437089663,0.04033299,2490.0,2489.9,4.0161677]
[1750437090505,0.04033299,2490.0,2489.8,4.01632065]
[1750437090710,0.0567,2489.8,2489.7,4.01654817]
[1750437090908,0.09703299,2489.8,2489.6,4.01668305]
[1750437091130,16.901,2489.7,2489.6,4.01670951]
[1750437092311,17.6857,2489.7,2489.6,4.01670951]
[1750437092511,0.0567,2489.6,2489.3,4.01711304]
[1750437092697,10.0,2489.4,2489.3,4.01711304]
[1750437093241,10.0,2489.4,2489.3,4.01719358]
[1750437093415,0.0567,2489.3,2489.0,4.01757211]
[1750437093579,10.0,2489.1,2488.6,0.7543]
[1750437093784,0.0567,2488.8,2488.4,4.01852699]
[1750437093993,6.9557,2488.7,2488.5,4.01843902]
[1750437094417,16.899,2488.7,2488.6,4.01832355]
[1750437094608,16.899,2488.7,2488.5,4.01839745]
[1750437094800,0.04033299,2488.6,2488.4,4.01864153]
[1750437094993,16.899,2488.5,2488.4,4.01864153]
[1750437095723,6.899,2488.5,2488.4,5.34398291]
[1750437096105,10.0,2488.9,2488.8,4.01800064]
[1750437096301,16.898,2488.9,2488.8,4.01800064]
[1750437096822,0.8131,2489.6,2488.9,4.01772431]
[1750437097124,10.0,2489.8,2489.5,4.01687085]
[1750437097326,7.5299495,2489.7,2489.6,4.01670951]
[1750437097486,7.52994849,2489.7,2489.6,4.01670951]
[1750437097816,7.52991495,2489.7,2489.5,4.01678098]
[1750437098022,7.52991495,2489.7,2489.3,4.77144148]
[1750437098023,6.93733299,2489.7,2489.6,4.01670951]
[1750437098335,16.897,2489.7,2489.6,4.01670951]
[1750437100287,10.0,2489.6,2489.5,4.01678568]
[1750437100620,16.9592,2489.7,2489.1,0.8288]
[1750437100823,0.10253299,2489.6,2489.3,4.01712219]
[1750437100990,10.0,2489.4,2489.3,4.01719358]
[1750437104014,10.0,2489.4,2488.9,0.7977]
[1750437104324,0.8715,2489.6,2489.2,4.01735497]
[1750437104325,16.894,2489.3,2489.2,4.01735497]
[1750437108290,16.9562,2489.3,2489.2,4.01735497]
[1750437108723,16.894,2489.3,2489.2,4.01735497]
[1750437109505,10.0,2489.3,2489.2,5.69813838]
[1750437109791,17.82197075,2490.0,2489.9,4.01622555]
[1750437109999,24.71197075,2490.0,2489.9,4.01622555]
[1750437110325,16.89,2490.0,2489.9,4.01622555]
[1750437111114,10.0,2489.9,2489.6,4.01669528]
[1750437111315,6.93033299,2489.8,2489.7,4.01647537]
[1750437112725,6.89,2489.8,2489.7,4.01647537]
[1750437114933,6.93033299,2489.8,2489.7,4.01647537]
[1750437115303,10.0,2489.7,2489.6,4.01664421]
[1750437118651,10.0,2489.7,2489.6,4.07794421]
[1750437119035,10.0,2489.7,2489.6,4.01664421]
[1750437120472,0.828,2490.2,2490.1,4.01590297]
[1750437120642,8.30530713,2490.2,2490.1,4.01590297]
[1750437120843,8.36751285,2490.2,2490.0,4.01594425]